bitfinex-derivatives/quotes_BTCF0:USTF0_20241120
["timestamp","ask_amount","ask_price","bid_price","bid_amount"]
[1732113432600,0.59569685,94321.0,94317.0,8.972e-05]
[1732113432902,0.23489685,94321.0,94317.0,8.972e-05]
[1732113433104,0.3608,94318.0,94317.0,8.972e-05]
[1732113433406,0.0001246,94320.0,94317.0,8.972e-05]
[1732113433706,0.0001246,94320.0,94318.0,0.371041]
[1732113433905,0.3608,94346.0,94319.0,0.3608]
[1732113434096,0.0049,94363.0,94332.0,0.3608]
[1732113434296,0.3608,94364.0,94332.0,0.3608]
[1732113434297,0.052941,94355.0,94341.0,0.052948]
[1732113434493,0.23489685,94357.0,94344.0,0.052946]
[1732113434700,0.3608,94351.0,94333.0,0.0397]
[1732113434900,0.00010904,94350.0,94333.0,0.0397]
[1732113435408,0.00010904,94350.0,94333.0,0.3397]
[1732113435605,0.413748,94342.0,94333.0,0.0397]
[1732113435811,0.052961,94319.0,94284.0,0.00012009]
[1732113436107,0.23489685,94306.0,94285.0,0.0408]
[1732113436304,0.3608,94301.0,94285.0,0.0408]
[1732113436905,0.67892,94301.0,94284.0,0.00012009]
[1732113437105,0.05298,94285.0,94284.0,0.00012009]
[1732113437308,2.50947685,94285.0,94284.0,0.00012009]
[1732113437901,2.50947685,94285.0,94271.0,0.04929827]
[1732113438103,2.50947685,94285.0,94264.0,0.3608]
[1732113438104,0.052982,94282.0,94264.0,0.413791]
[1732113438408,0.052982,94282.0,94267.0,0.05299]
[1732113438409,0.3608,94275.0,94267.0,0.05299]
[1732113438715,0.3608,94275.0,94261.0,0.02118704]
[1732113438895,1.73489685,94285.0,94272.0,0.052987]
[1732113439103,0.3608,94283.0,94272.0,0.052987]
[1732113439501,0.3608,94281.0,94272.0,0.052987]
[1732113439704,0.052983,94280.0,94268.0,0.00161566]
[1732113439899,0.3608,94271.0,94268.0,0.00161566]
[1732113440102,0.3608,94271.0,94258.0,0.0802]
[1732113440103,0.23328119,94269.0,94258.0,0.0802]
[1732113440299,0.3608,94268.0,94258.0,0.0802]
[1732113440501,0.3608,94259.0,94258.0,0.0802]
[1732113440804,0.36090165,94259.0,94238.0,0.3608]
[1732113441007,0.00010165,94259.0,94247.0,0.053001]
[1732113441307,1.5,94258.0,94248.0,0.053]
[1732113441608,0.23489685,94257.0,94246.0,0.71688]
[1732113442008,0.23489685,94257.0,94242.0,0.0416]
[1732113442329,1.73489685,94257.0,94256.0,0.00171348]
[1732113444599,1.73489685,94257.0,94233.0,0.04196703]
[1732113444812,0.51481981,94242.0,94234.0,0.053008]
[1732113445016,0.51481981,94242.0,94233.0,0.3608]
[1732113445204,0.51481981,94242.0,94235.0,0.053008]
[1732113445605,0.15401981,94242.0,94233.0,0.3608]
[1732113445902,0.15401981,94250.0,94241.0,0.3608]
[1732113446107,1.5,94257.0,94255.0,0.052997]
[1732113446513,0.00010165,94259.0,94257.0,0.052996]
[1732113446709,0.15401981,94276.0,94273.0,0.052986]
[1732113446911,1.5,94275.0,94274.0,0.052986]
[1732113447117,2.48703962,94275.0,94237.0,0.00148]
[1732113447336,0.053008,94235.0,94218.0,0.053017]
[1732113447628,0.15401981,94226.0,94215.0,0.053019]
[1732113447806,0.00011444,94225.0,94219.0,0.053017]
[1732113448008,0.7216,94220.0,94219.0,0.053017]
[1732113448426,0.7216,94220.0,94217.0,0.0416]
[1732113448610,0.3182,94218.0,94203.0,0.053026]
[1732113448917,0.41474551,94217.0,94200.0,0.153027]
[1732113449109,0.31674765,94217.0,94200.0,0.1]
[1732113449512,0.7216,94220.0,94218.0,0.053017]
[1732113450007,0.7216,94220.0,94201.0,0.0385]
[1732113450008,1.03834765,94220.0,94201.0,0.0385]
[1732113450215,0.31674765,94217.0,94201.0,0.0385]
[1732113450411,0.31674765,94217.0,94201.0,0.091527]
[1732113450614,0.31674765,94217.0,94201.0,0.0385]
[1732113450816,0.7216,94220.0,94218.0,0.053017]
[1732113451117,0.7216,94220.0,94201.0,0.0385]
[1732113451324,0.31674765,94217.0,94201.0,0.0385]
[1732113451619,0.31674765,94217.0,94206.0,0.053024]
[1732113451819,0.31674765,94217.0,94209.0,0.053022]
[1732113452020,0.41474551,94217.0,94203.0,0.053026]
[1732113452319,1.96776351,94217.0,94200.0,0.1]
[1732113452525,1.96776351,94217.0,94204.0,0.053025]
[1732113452916,0.31674765,94213.0,94200.0,0.1]
[1732113453121,0.7216,94201.0,94200.0,0.1]
[1732113454619,1.03834765,94201.0,94200.0,0.1]
[1732113454826,1.13634551,94201.0,94200.0,0.1]
[1732113455613,1.13634551,94201.0,94154.0,0.23575949]
[1732113455614,0.053063,94138.0,94137.0,0.00994445]
[1732113455815,0.053058,94146.0,94131.0,0.053066]
[1732113456017,0.23575949,94167.0,94146.0,0.053058]
[1732113456018,0.053048,94164.0,94146.0,0.053058]
[1732113456213,0.09799786,94164.0,94147.0,0.0417]
[1732113456425,0.41474551,94164.0,94152.0,0.053054]
[1732113456613,1.50009824,94163.0,94148.0,0.0422]
[1732113456814,1.50009824,94163.0,94158.0,0.053051]
[1732113457015,0.7216,94159.0,94158.0,0.053051]
[1732113457217,1.03834765,94159.0,94148.0,0.0422]
[1732113457421,0.3608,94149.0,94148.0,0.0422]
[1732113457818,0.77554551,94149.0,94148.0,0.0422]
[1732113458127,0.45879786,94149.0,94148.0,0.0422]
[1732113458915,0.45879786,94149.0,94148.0,0.04447189]
[1732113458916,0.297,94149.0,94148.0,0.04447189]
[1732113459220,0.2339,94149.0,94148.0,0.39752889]
[1732113459422,0.2339,94149.0,94148.0,0.09752889]
[1732113459625,0.2339,94149.0,94148.0,0.39752889]
[1732113459831,0.2339,94149.0,94148.0,0.09752889]
[1732113460022,0.2977,94149.0,94148.0,0.71616889]
[1732113460213,9.824e-05,94163.0,94162.0,0.053049]
[1732113460527,9.824e-05,94163.0,94162.0,0.413849]
[1732113460722,9.824e-05,94163.0,94162.0,1.032449]
[1732113461024,9.824e-05,94163.0,94162.0,1.03472089]
[1732113461227,0.3608,94175.0,94174.0,0.053042]
[1732113461523,0.3608,94175.0,94162.0,0.00227189]
[1732113461524,0.053045,94170.0,94162.0,0.00227189]
[1732113461824,0.3608,94166.0,94162.0,0.00227189]
[1732113462022,0.3608,94166.0,94155.0,0.00159308]
[1732113462023,0.3608,94166.0,94164.0,0.00227189]
[1732113462218,0.0001025,94165.0,94164.0,0.00227189]
[1732113462623,0.3609025,94165.0,94164.0,0.00227189]
[1732113463326,0.77564801,94165.0,94164.0,0.00227189]
[1732113463728,0.67765015,94165.0,94164.0,0.00227189]
[1732113463919,0.67765015,94165.0,94155.0,0.00159308]
[1732113463920,0.053052,94157.0,94155.0,0.00159308]
[1732113464117,0.67754765,94156.0,94155.0,0.00159308]
[1732113464429,0.3608,94156.0,94155.0,0.00159308]
[1732113464618,0.73059965,94156.0,94155.0,0.00159308]
[1732113464818,0.82859751,94156.0,94155.0,0.00159308]
[1732113465223,0.77554551,94156.0,94155.0,0.00159308]
[1732113466130,0.45879786,94156.0,94155.0,0.00159308]
[1732113466320,0.09799786,94156.0,94155.0,0.00159308]
[1732113466623,0.09799786,94156.0,94155.0,0.05605782]
[1732113467028,0.09799786,94156.0,94155.0,0.41685782]
[1732113467224,0.0001025,94165.0,94160.0,0.05305]
[1732113467427,0.0001025,94165.0,94155.0,0.30300482]
[1732113467428,0.09810036,94165.0,94164.0,0.3608]
[1732113467725,0.09810036,94165.0,94164.0,0.36221174]
[1732113467921,0.0001025,94165.0,94159.0,0.3608]
[1732113468125,0.09810036,94165.0,94159.0,0.3608]
[1732113468321,0.3608,94160.0,94155.0,0.00159308]
[1732113468718,0.45879786,94160.0,94155.0,0.00159308]
[1732113468918,0.3608,94157.0,94155.0,0.00159308]
[1732113469439,0.09799786,94157.0,94156.0,0.053052]
[1732113469725,0.0001025,94165.0,94156.0,0.3608]
[1732113469928,0.09810036,94165.0,94163.0,0.053048]
[1732113470122,0.09810036,94165.0,94164.0,0.3608]
[1732113470319,0.00649414,94193.0,94187.0,0.053035]
[1732113470525,0.3608,94197.0,94175.0,0.3608]
[1732113470725,0.3608,94197.0,94196.0,0.05303]
[1732113471120,0.0049,94226.0,94196.0,0.97928]
[1732113471121,0.3608,94211.0,94196.0,0.97928]
[1732113471324,7.903e-05,94210.0,94209.0,0.053023]
[1732113471931,7.903e-05,94210.0,94209.0,0.353023]
[1732113472536,1.5,94231.0,94229.0,0.053011]
[1732113473034,0.3608,94230.0,94214.0,0.3608]
[1732113473239,0.3608,94233.0,94214.0,0.3]
[1732113473435,1.8608,94239.0,94218.0,0.3608]
[1732113473620,0.00013301,94226.0,94225.0,0.053014]
[1732113474033,0.3608,94253.0,94225.0,0.053014]
[1732113474034,0.3608,94253.0,94238.0,0.053006]
[1732113474225,0.3608,94253.0,94252.0,0.052998]
[1732113474924,8.112e-05,94253.0,94252.0,0.352998]
[1732113475232,8.112e-05,94253.0,94252.0,0.052998]
[1732113475925,1e-08,94253.0,94252.0,1.032078]
[1732113476321,1e-08,94253.0,94252.0,1.04201543]
[1732113476624,1e-08,94253.0,94252.0,1.43271543]
[1732113477030,1e-08,94253.0,94252.0,0.74201543]
[1732113477234,1e-08,94253.0,94252.0,1.04201543]
[1732113477632,1e-08,94253.0,94252.0,1.032078]
[1732113478026,0.09799787,94253.0,94252.0,0.31828]
[1732113478227,1e-08,94253.0,94251.0,0.052999]
[1732113478431,1e-08,94253.0,94236.0,0.23575949]
[1732113478639,0.3608,94237.0,94234.0,0.053008]
[1732113478829,0.3608,94237.0,94235.0,0.053008]
[1732113479242,1e-08,94253.0,94252.0,0.052998]
[1732113479929,1e-08,94253.0,94236.0,0.00056]
[1732113480131,0.3608,94237.0,94233.0,0.00159176]
[1732113480344,0.3608,94237.0,94236.0,0.053007]
[1732113480742,0.3608,94237.0,94233.0,0.00159176]
[1732113480743,0.3608,94237.0,94233.0,0.02280529]
[1732113480933,1e-08,94253.0,94242.0,0.053004]
[1732113481132,1e-08,94253.0,94252.0,0.052998]
[1732113481845,1e-08,94253.0,94252.0,0.671278]
[1732113482342,0.0049,94282.0,94252.0,0.61828]
[1732113482545,0.3608,94288.0,94271.0,0.59655949]
[1732113482836,0.0049,94297.0,94271.0,0.59655949]
[1732113482837,0.3608,94297.0,94287.0,0.052978]
[1732113483040,0.3608,94297.0,94271.0,0.54723949]
[1732113483041,0.3608,94297.0,94271.0,0.59223949]
[1732113483233,0.3608,94297.0,94279.0,0.00012126]
[1732113483234,0.3608,94288.0,94279.0,0.00012126]
[1732113483435,0.67754765,94280.0,94279.0,0.00012126]
[1732113483843,0.3608,94280.0,94279.0,0.00012126]
[1732113484043,9.452e-05,94287.0,94279.0,0.00012126]
[1732113484240,0.3608,94280.0,94279.0,0.00012126]
[1732113484542,9.452e-05,94287.0,94285.0,0.052979]
[1732113485547,0.1,94300.0,94299.0,0.052972]
[1732113486046,0.4033,94323.0,94299.0,1.031892]
[1732113486047,0.3608,94323.0,94299.0,1.031892]
[1732113486233,0.3608,94323.0,94299.0,0.713772]
[1732113486540,0.3608,94323.0,94322.0,0.052959]
[1732113486743,0.36086024,94323.0,94322.0,0.052959]
[1732113487248,0.36086024,94323.0,94318.0,0.35644]
[1732113487428,0.36086024,94323.0,94321.0,0.052959]
[1732113487628,0.3608,94322.0,94318.0,0.35644]
[1732113487831,0.67754765,94319.0,94318.0,0.0006]
[1732113488039,6.024e-05,94323.0,94320.0,0.05296]
[1732113488242,6.024e-05,94323.0,94322.0,0.052959]
[1732113488739,6.024e-05,94323.0,94322.0,0.352959]
[1732113488946,6.024e-05,94323.0,94322.0,0.052959]
[1732113489239,6.024e-05,94323.0,94322.0,0.352959]
[1732113489436,6.024e-05,94323.0,94322.0,0.052959]
[1732113489633,6.024e-05,94323.0,94322.0,0.352959]
[1732113490339,6.024e-05,94323.0,94322.0,0.052959]
[1732113490534,6.024e-05,94323.0,94268.0,0.3608]
[1732113490535,0.31674765,94319.0,94268.0,0.3608]
[1732113490733,0.3608,94298.0,94290.0,0.23575949]
[1732113490943,0.3608,94298.0,94297.0,0.052973]
[1732113491139,0.3608,94298.0,94290.0,0.53575949]
[1732113491140,0.3608,94298.0,94296.0,0.052973]
[1732113491442,0.31674765,94297.0,94292.0,0.00993127]
[1732113491634,0.3608,94302.0,94291.0,0.35624]
[1732113491635,0.31674765,94292.0,94291.0,0.35624]
[1732113491833,1.86972365,94292.0,94291.0,0.35624]
[1732113492033,1.86972365,94292.0,94267.0,0.06292534]
[1732113492034,1.9661312,94292.0,94267.0,0.06292534]
[1732113492246,0.67754765,94280.0,94253.0,0.052998]
[1732113492541,0.23575949,94267.0,94234.0,0.00993641]
[1732113492731,0.7216,94280.0,94233.0,0.02119115]
[1732113492732,0.7216,94235.0,94233.0,0.02119115]
[1732113492932,1.5,94234.0,94213.0,0.35624]
[1732113493143,0.3608,94214.0,94213.0,0.70926]
[1732113493333,0.3608,94214.0,94213.0,0.40938798]
[1732113493539,0.36089755,94219.0,94213.0,0.67755913]
[1732113493841,0.36089755,94219.0,94217.0,0.053018]
[1732113494146,0.36089755,94219.0,94213.0,0.37755913]
[1732113494336,0.36089755,94219.0,94217.0,0.053018]
[1732113494943,0.31515647,94218.0,94213.0,0.00012798]
[1732113495245,0.31515647,94214.0,94213.0,0.00012798]
[1732113495651,0.41156402,94214.0,94213.0,0.00012798]
[1732113496033,0.36089755,94219.0,94216.0,0.053018]
[1732113496240,0.31515647,94218.0,94213.0,0.00012798]
[1732113496438,0.31515647,94217.0,94213.0,0.00012798]
[1732113496644,0.31515647,94217.0,94215.0,0.053019]
[1732113496838,0.36089755,94219.0,94217.0,0.053018]
[1732113497044,0.36089755,94219.0,94218.0,0.00994244]
[1732113497549,0.36089755,94219.0,94218.0,0.00994298]
[1732113497731,9.755e-05,94219.0,94218.0,0.00994298]
[1732113497933,9.755e-05,94219.0,94218.0,0.00994232]
[1732113497934,0.36089755,94219.0,94218.0,0.00994232]
[1732113498131,0.36089755,94219.0,94217.0,0.053018]
[1732113498339,0.36089755,94219.0,94218.0,0.00994263]
[1732113498947,0.3608,94234.0,94218.0,0.54570212]
[1732113499156,1.5,94237.0,94218.0,0.54570212]
[1732113499157,0.3608,94222.0,94221.0,0.053016]
[1732113499648,0.7216,94222.0,94221.0,0.053016]
[1732113499950,0.7216,94222.0,94221.0,0.06295727]
[1732113500147,0.72168039,94222.0,94221.0,0.06295727]
[1732113500746,1.13324441,94222.0,94221.0,0.00994127]
[1732113501053,1.13324441,94222.0,94213.0,0.00012798]
[1732113501242,0.67595647,94214.0,94213.0,0.00012798]
[1732113501440,0.67532885,94214.0,94213.0,0.00012798]
[1732113501645,0.7717364,94214.0,94213.0,0.00012798]
[1732113501844,0.2119719,94195.0,94190.0,0.02121383]
[1732113502045,0.75657993,94214.0,94181.0,0.053038]
[1732113502046,0.9335719,94191.0,94181.0,0.053038]
[1732113502253,0.5727719,94182.0,94181.0,0.053038]
[1732113502551,0.5727719,94182.0,94169.0,0.23575949]
[1732113502758,0.3608,94170.0,94169.0,0.053045]
[1732113502943,0.3608,94170.0,94169.0,0.28880449]
[1732113503356,0.30112586,94182.0,94181.0,0.053038]
[1732113503566,0.30112586,94182.0,94181.0,0.28879749]
[1732113504052,0.3608,94206.0,94205.0,0.053025]
[1732113505343,0.3608,94221.0,94205.0,0.23575949]
[1732113505550,0.3608,94221.0,94193.0,0.02120684]
[1732113505746,0.2119719,94220.0,94219.0,0.053017]
[1732113505950,0.3608,94221.0,94219.0,0.053017]
[1732113506547,0.3608,94221.0,94200.0,0.00159219]
[1732113506548,0.2119719,94220.0,94200.0,0.00159219]
[1732113506755,0.2119719,94205.0,94203.0,0.053026]
[1732113507055,0.45776756,94221.0,94200.0,0.00159219]
[1732113507056,0.2119719,94214.0,94213.0,0.05302]
[1732113507261,0.5734119,94221.0,94220.0,0.053016]
[1732113507459,8.039e-05,94222.0,94220.0,0.053016]
[1732113507951,0.2119719,94221.0,94220.0,0.053016]
[1732113508145,8.039e-05,94222.0,94220.0,0.053016]
[1732113508661,8.039e-05,94222.0,94221.0,0.3608]
[1732113509051,8.039e-05,94222.0,94220.0,0.053016]
[1732113509449,0.3657,94243.0,94220.0,0.053016]
[1732113509450,0.0049,94243.0,94242.0,0.053004]
[1732113509655,0.3608,94256.0,94254.0,0.052997]
[1732113509879,0.3608,94256.0,94234.0,0.35648]
[1732113509880,0.2119719,94256.0,94235.0,0.053008]
[1732113510054,0.3608,94260.0,94234.0,1.01728]
[1732113510258,0.00159215,94270.0,94258.0,0.052995]
[1732113510259,0.3608,94264.0,94258.0,0.052995]
[1732113510448,7.667e-05,94259.0,94258.0,0.052995]
[1732113511151,7.667e-05,94259.0,94258.0,0.06293289]
[1732113511658,0.00159215,94270.0,94258.0,0.06293289]
[1732113511962,0.0049,94295.0,94271.0,0.052988]
[1732113512164,0.1,94300.0,94299.0,0.052972]
[1732113512755,0.03188697,94300.0,94299.0,0.42370642]
[1732113512963,0.3608,94316.0,94299.0,0.37073442]
[1732113513148,0.3608,94316.0,94315.0,0.052963]
[1732113513560,0.3608,94316.0,94315.0,0.00993442]
[1732113513764,0.66917945,94316.0,94315.0,0.00993442]
[1732113513946,0.66917945,94316.0,94283.0,0.3608]
[1732113513947,0.2119719,94297.0,94283.0,0.35644]
[1732113514146,0.2119719,94290.0,94283.0,0.35644]
[1732113514454,0.3608,94290.0,94288.0,0.052978]
[1732113514959,8.61e-05,94290.0,94289.0,0.08412465]
[1732113515155,0.3608,94315.0,94289.0,0.08412465]
[1732113515156,0.3608,94315.0,94289.0,0.03114665]
[1732113515355,0.2119719,94302.0,94294.0,0.3608]
[1732113515658,0.41461273,94315.0,94300.0,0.052971]
[1732113515659,0.2119719,94301.0,94300.0,0.052971]
[1732113515864,0.2119719,94314.0,94312.0,0.052965]
[1732113516047,0.2119719,94320.0,94313.0,0.23575949]
[1732113516250,0.2119719,94320.0,94318.0,0.052961]
[1732113516451,0.36136001,94331.0,94327.0,0.052956]
[1732113516647,0.3608,94329.0,94327.0,0.052956]
[1732113516857,0.2119719,94328.0,94327.0,0.052956]
[1732113517071,0.0049,94337.0,94327.0,0.23575949]
[1732113517373,0.3608,94329.0,94316.0,0.23575949]
[1732113517663,0.2119719,94332.0,94317.0,0.00993093]
[1732113517961,0.2119719,94332.0,94327.0,0.052956]
[1732113518258,0.2119719,94332.0,94330.0,0.052954]
[1732113518463,0.3608,94344.0,94316.0,0.23575949]
[1732113518464,0.3608,94331.0,94316.0,0.23575949]
[1732113518662,0.2119719,94333.0,94330.0,0.052955]
[1732113518858,0.3608,94331.0,94330.0,0.052955]
[1732113519256,0.62658463,94331.0,94324.0,0.052958]
[1732113519468,0.3608,94331.0,94323.0,0.0211868]
[1732113519654,0.2119719,94324.0,94310.0,0.04153036]
[1732113519859,0.2119719,94311.0,94304.0,0.00159048]
[1732113520155,0.5727719,94305.0,94304.0,0.00159048]
[1732113520567,0.62658463,94305.0,94304.0,0.00159048]
[1732113521466,0.2003385,94289.0,94283.0,0.35624]
[1732113521656,0.2003385,94287.0,94284.0,0.05298]
[1732113521855,0.2003385,94287.0,94278.0,0.06290061]
[1732113521856,0.2003385,94297.0,94296.0,0.052974]
[1732113522058,0.5611385,94297.0,94296.0,0.052974]
[1732113522755,0.3608,94297.0,94296.0,0.052974]
[1732113523062,0.00010886,94304.0,94302.0,0.05297]
[1732113523264,0.0049,94329.0,94323.0,0.052958]
[1732113523462,0.2003385,94320.0,94314.0,0.23575949]
[1732113523660,0.3608,94315.0,94311.0,0.052965]
[1732113523858,0.3608,94315.0,94303.0,0.23575949]
[1732113523859,0.2003385,94306.0,94304.0,0.052969]
[1732113524172,0.3608,94305.0,94304.0,0.052969]
[1732113524671,0.5611385,94305.0,94303.0,0.27826563]
[1732113524856,0.2003385,94304.0,94303.0,0.04250614]
[1732113525064,0.2003385,94304.0,94299.0,0.052972]
[1732113525258,0.3608,94303.0,94299.0,0.052972]
[1732113525458,0.2003385,94304.0,94302.0,0.02118528]
[1732113525659,0.3608,94326.0,94303.0,0.23575949]
[1732113525863,0.3608,94326.0,94302.0,0.02118528]
[1732113525864,0.2003385,94318.0,94317.0,0.052962]
[1732113526265,0.5611385,94318.0,94317.0,0.052962]
[1732113526463,0.2003385,94318.0,94317.0,0.052962]
[1732113526661,0.5611385,94318.0,94317.0,0.052962]
[1732113527169,1.50056001,94341.0,94317.0,0.052962]
[1732113527170,0.3608,94331.0,94317.0,0.052962]
[1732113527358,0.3608,94331.0,94330.0,0.052955]
[1732113527560,0.2003385,94331.0,94328.0,0.23575949]
[1732113527768,0.3608,94340.0,94339.0,0.05295]
[1732113527965,0.3608,94340.0,94328.0,0.23575949]
[1732113527966,0.97575123,94340.0,94328.0,0.23575949]
[1732113528164,0.2003385,94333.0,94332.0,0.052953]
[1732113528371,0.77541273,94340.0,94332.0,0.052953]
[1732113528372,0.2003385,94338.0,94332.0,0.052953]
[1732113528568,0.2003385,94338.0,94337.0,0.052951]
[1732113530171,0.5611385,94338.0,94337.0,0.052951]
[1732113530388,0.2003385,94338.0,94337.0,0.052951]
[1732113531371,0.2003385,94338.0,94331.0,0.052954]
[1732113531563,0.2003385,94338.0,94326.0,0.35616]
[1732113531564,0.2003385,94329.0,94326.0,0.35616]
[1732113531764,0.5611385,94327.0,94326.0,0.35616]
[1732113532270,0.61495123,94327.0,94326.0,0.35616]
[1732113532480,0.61495123,94327.0,94326.0,0.052957]
[1732113532481,2.11495123,94327.0,94326.0,0.052957]
[1732113533062,2.11495123,94327.0,94319.0,0.05296]
[1732113533266,0.3608,94321.0,94319.0,0.05296]
[1732113533467,0.2003385,94320.0,94319.0,0.05296]
[1732113533974,0.5611385,94320.0,94319.0,0.05296]
[1732113534161,0.61495123,94320.0,94319.0,0.05296]
[1732113534368,0.2003385,94320.0,94319.0,0.05296]
[1732113534564,0.2003385,94314.0,94291.0,0.23575949]
[1732113534867,0.3608,94320.0,94282.0,0.3608]
[1732113534868,0.3608,94304.0,94302.0,0.23575949]
[1732113535074,0.2003385,94303.0,94302.0,0.28872949]
[1732113535469,0.25256102,94303.0,94296.0,0.052974]
[1732113535670,0.41302252,94303.0,94289.0,0.23575949]
[1732113535980,0.5611385,94290.0,94277.0,0.23723949]
[1732113536275,0.2003385,94289.0,94277.0,0.23723949]
[1732113536575,0.2003385,94289.0,94288.0,0.28882669]
[1732113536778,0.25256102,94289.0,94288.0,0.28882669]
[1732113537670,0.25256102,94289.0,94288.0,8.92e-05]
[1732113538267,1.75256102,94289.0,94288.0,8.92e-05]
[1732113539164,1.75256102,94289.0,94264.0,0.39939677]
[1732113539165,0.19865851,94277.0,94265.0,0.052991]
[1732113539364,0.3608,94266.0,94265.0,0.052991]
[1732113539568,0.55945851,94266.0,94265.0,0.052991]
[1732113539772,0.61168103,94266.0,94265.0,0.052991]
[1732113540175,0.55945851,94266.0,94265.0,0.052991]
[1732113540780,0.3608,94266.0,94265.0,0.052991]
[1732113541482,0.3608,94281.0,94264.0,0.35616]
[1732113541669,0.41302252,94281.0,94265.0,0.36892377]
[1732113541873,0.41302252,94281.0,94264.0,0.35616]
[1732113541874,0.19865851,94271.0,94269.0,0.052988]
[1732113542176,0.3608,94275.0,94264.0,0.35616]
[1732113542490,0.55945851,94265.0,94264.0,0.35616]
[1732113542668,0.55945851,94265.0,94263.0,0.31593277]
[1732113542981,0.19865851,94263.0,94256.0,0.41692487]
[1732113543181,0.3608,94257.0,94256.0,0.052996]
[1732113543369,0.19865851,94260.0,94256.0,0.052996]
[1732113543768,0.55945851,94260.0,94254.0,0.02118476]
[1732113543973,0.19865851,94255.0,94254.0,0.02118476]
[1732113544177,0.19865851,94255.0,94251.0,0.31593277]
[1732113544368,0.19865851,94251.0,94239.0,0.67217277]
[1732113544583,0.25097023,94251.0,94239.0,0.67217277]
[1732113544778,0.25097023,94251.0,94239.0,0.31593277]
[1732113544977,0.25097023,94251.0,94234.0,0.31593277]
[1732113545288,0.25097023,94251.0,94232.0,0.04206735]
[1732113545672,0.053004,94242.0,94225.0,0.053013]
[1732113545877,0.92025851,94241.0,94223.0,0.04259309]
[1732113546284,0.97248103,94241.0,94228.0,0.053012]
[1732113546590,0.97248103,94241.0,94229.0,0.053011]
[1732113546891,0.61168103,94241.0,94237.0,0.053007]
[1732113547080,0.97248103,94241.0,94237.0,0.053007]
[1732113547407,8.92e-05,94251.0,94240.0,0.05459655]
[1732113547587,8.92e-05,94251.0,94250.0,0.23575949]
[1732113547788,0.19865851,94241.0,94240.0,0.00159155]
[1732113548085,0.61168103,94241.0,94240.0,0.00159155]
[1732113548291,0.66468603,94241.0,94240.0,0.00159155]
[1732113548486,2.16468603,94241.0,94240.0,0.00159155]
[1732113548794,2.11168103,94241.0,94223.0,0.053014]
[1732113548979,0.3608,94224.0,94223.0,0.053015]
[1732113549380,0.3608,94224.0,94222.0,0.23575949]
[1732113549586,0.3608,94237.0,94222.0,0.23575949]
[1732113549883,0.3608,94248.0,94236.0,0.053007]
[1732113550083,0.19865851,94248.0,94247.0,0.413801]
[1732113550397,8.92e-05,94251.0,94250.0,0.053]
[1732113550689,8.92e-05,94251.0,94250.0,0.4138]
[1732113550892,8.92e-05,94251.0,94250.0,0.7138]
[1732113551080,0.3608,94264.0,94263.0,0.052992]
[1732113551884,0.55945851,94264.0,94263.0,0.052992]
[1732113552186,0.55957327,94264.0,94263.0,0.052992]
[1732113552389,0.00011476,94264.0,94263.0,0.09610635]
[1732113552887,0.052992,94263.0,94249.0,0.02120726]
[1732113553196,0.25099579,94264.0,94238.0,0.0402]
[1732113553197,0.19865851,94242.0,94241.0,0.05459554]
[1732113553380,0.3608,94256.0,94241.0,0.00159154]
[1732113553686,0.19865851,94250.0,94248.0,0.23575949]
[1732113553885,0.00011476,94264.0,94263.0,0.052992]
[1732113554297,0.55957327,94264.0,94263.0,0.052992]
[1732113554685,0.25099579,94264.0,94248.0,0.2786745]
[1732113554913,0.05233728,94264.0,94262.0,0.052993]
[1732113555189,0.41313728,94264.0,94249.0,0.053]
[1732113555396,0.55945851,94250.0,94243.0,0.053003]
[1732113555593,0.19865851,94242.0,94238.0,0.053006]
[1732113555792,0.19865851,94242.0,94241.0,0.05459654]
[1732113555988,0.3608,94249.0,94248.0,0.053001]
[1732113556391,0.55945851,94249.0,94241.0,0.00159154]
[1732113556598,0.19865851,94242.0,94241.0,0.00159154]
[1732113556980,0.25088103,94242.0,94241.0,0.00159154]
[1732113557890,0.25088103,94242.0,94226.0,0.35636]
[1732113558093,0.55945851,94229.0,94228.0,0.053012]
[1732113558499,0.55945851,94229.0,94219.0,0.04219603]
[1732113558500,0.61168103,94229.0,94209.0,0.25136044]
[1732113558797,0.61168103,94229.0,94204.0,0.0015921]
[1732113558798,0.00011476,94228.0,94204.0,0.0015921]
[1732113558985,0.3608,94205.0,94204.0,0.0015921]
[1732113559191,0.00011476,94228.0,94204.0,0.0015921]
[1732113559192,0.053014,94224.0,94204.0,0.0546171]
[1732113559385,0.05233728,94228.0,94214.0,0.053019]
[1732113559594,0.3608,94217.0,94215.0,0.053019]
[1732113559787,0.3608,94217.0,94207.0,0.28878349]
[1732113560091,0.3608,94217.0,94207.0,0.053024]
[1732113560092,0.3608,94208.0,94207.0,0.053024]
[1732113560501,0.7216,94208.0,94207.0,0.053024]
[1732113560800,0.77382252,94208.0,94204.0,0.0015921]
[1732113561689,0.7216,94208.0,94204.0,0.0015921]
[1732113561883,0.053015,94223.0,94205.0,0.053024]
[1732113561884,0.3608,94207.0,94205.0,0.053024]
[1732113562083,0.3608,94207.0,94204.0,0.0015921]
[1732113562491,0.41302252,94207.0,94204.0,0.0015921]
[1732113562693,0.31844,94206.0,94204.0,0.0015921]
[1732113562997,0.371464,94206.0,94204.0,0.0015921]
[1732113563200,0.10524652,94206.0,94204.0,0.0015921]
[1732113564194,0.053025,94204.0,94202.0,8.263e-05]
[1732113564397,0.053027,94202.0,94170.0,0.053044]
[1732113564600,0.3608,94171.0,94169.0,0.053045]
[1732113564802,0.3608,94171.0,94155.0,0.69091324]
[1732113565098,0.3608,94156.0,94155.0,0.37498047]
[1732113565285,0.36093253,94156.0,94154.0,0.05475914]
[1732113565486,0.38305758,94156.0,94154.0,0.05475914]
[1732113566089,0.74385758,94156.0,94154.0,0.00170614]
[1732113566502,0.74385758,94156.0,94154.0,0.05476014]
[1732113566894,0.38305758,94156.0,94154.0,0.05476014]
[1732113567188,0.38305758,94156.0,94154.0,0.00170614]
[1732113567605,0.74385758,94156.0,94154.0,0.00170614]
[1732113567898,0.74385758,94156.0,94154.0,0.05475914]
[1732113568306,0.74385758,94156.0,94154.0,0.00170614]
[1732113568999,0.74385758,94156.0,94155.0,0.053053]
[1732113569301,0.00649373,94184.0,94170.0,0.053045]
[1732113569495,0.3608,94173.0,94170.0,0.053045]
[1732113569803,0.3608,94171.0,94170.0,0.053045]
[1732113570102,0.3608,94171.0,94167.0,0.18864209]